bitfinex/quotes_ETHUSD_20220219
["timestamp","ask_amount","ask_price","bid_price","bid_amount"]
[1645251113425,0.00236017,2808.7,2808.5,0.00113109]
[1645251114276,0.81026261,2808.9,2808.5,0.00113109]
[1645251114478,0.00236017,2808.7,2808.5,0.00113109]
[1645251114884,0.80541788,2808.9,2808.5,0.00113109]
[1645251115077,1.215,2809.0,2808.5,0.00113109]
[1645251118722,1.88785796,2809.0,2808.5,0.00113109]
[1645251119322,1.215,2809.0,2808.5,0.00113109]
[1645251119522,1.88785796,2809.0,2808.5,0.00113109]
[1645251120723,0.89057,2808.9,2808.5,0.00113109]
[1645251121071,1.88785796,2809.0,2808.5,0.00113109]
[1645251122872,0.00236211,2808.9,2808.5,0.00113109]
[1645251123773,1.88785796,2809.0,2808.5,0.00113109]
[1645251124173,0.00236214,2808.8,2808.5,0.00113109]
[1645251125123,1.215,2809.0,2808.5,0.00113109]
[1645251125325,0.00236212,2808.8,2808.5,0.00113109]
[1645251127522,2.77839796,2809.0,2808.5,0.00113109]
[1645251127724,0.00236212,2808.8,2808.5,0.00113109]
[1645251128575,2.77839796,2809.0,2808.5,0.00113109]
[1645251128975,0.00236212,2808.8,2808.5,0.00113109]
[1645251129378,1.56583008,2808.8,2808.5,0.00113109]
[1645251129578,3.20439642,2808.7,2808.5,0.00113109]
[1645251129778,0.67285796,2808.6,2808.5,0.00113109]
[1645251129977,4.05919943,2808.7,2808.5,0.00113109]
[1645251130379,5.16786147,2808.7,2808.5,0.00113109]
[1645251130584,6.05856147,2808.7,2808.5,0.00113109]
[1645251130780,6.73141943,2808.7,2808.5,0.00113109]
[1645251131179,4.41363796,2808.7,2808.5,0.00113109]
[1645251132419,3.74078,2808.7,2808.5,0.00113109]
[1645251133125,3.56288,2808.7,2808.5,0.00113109]
[1645251134922,0.80965811,2808.6,2808.5,0.00113109]
[1645251135523,0.80965811,2808.6,2808.5,0.00025537]
[1645251137487,0.80965811,2808.7,2808.5,0.00025537]
[1645251137686,0.80965811,2808.6,2808.5,0.00025537]
[1645251137886,0.80965811,2808.7,2808.5,0.00025537]
[1645251138889,0.80965811,2808.6,2808.5,0.00025537]
[1645251139690,0.81202018,2808.8,2808.5,0.00025537]
[1645251139929,0.80965811,2808.7,2808.5,0.00025537]
[1645251140126,0.80965811,2808.6,2808.5,0.00025537]
[1645251140325,0.78202018,2808.8,2808.5,0.00025537]
[1645251140528,0.89056,2808.9,2808.5,0.00025537]
[1645251141130,1.56341796,2808.9,2808.5,0.00025537]
[1645251141325,0.89056,2808.9,2808.5,0.00025537]
[1645251142131,0.00114939,2808.9,2808.5,0.00025537]
[1645251142328,0.54348214,2808.9,2808.5,0.00025537]
[1645251142529,1.2163401,2808.9,2808.5,0.00025537]
[1645251143133,0.8906,2808.8,2808.5,0.00025537]
[1645251145377,2.10811274,2808.9,2808.5,0.00025537]
[1645251145580,2.10575071,2808.9,2808.5,0.00025537]
[1645251145878,2.10811274,2808.9,2808.5,0.00025537]
[1645251146677,0.8906,2808.8,2808.5,0.00025537]
[1645251149928,2.10811274,2808.9,2808.5,0.00025537]
[1645251150228,2.10575071,2808.9,2808.5,0.00025537]
[1645251150426,2.10811276,2808.9,2808.5,0.00025537]
[1645251151074,0.8906,2808.8,2808.5,0.00025537]
[1645251151273,1.56345796,2808.8,2808.5,0.00025537]
[1645251151672,0.8906,2808.8,2808.5,0.00025537]
[1645251151873,1.56345796,2808.8,2808.5,0.00025537]
[1645251152072,0.8906,2808.8,2808.5,0.00025537]
[1645251153377,1.86345796,2808.8,2808.5,0.00025537]
[1645251153576,0.67285796,2808.6,2808.5,0.00025537]
[1645251153774,1.56360796,2808.7,2808.5,0.00025537]
[1645251154374,1.78149,2808.6,2808.5,0.00025537]
[1645251158236,2.78149,2808.6,2808.5,0.00025537]
[1645251158446,6.28976229,2808.6,2808.5,0.00025537]
[1645251158712,18.36124382,2808.6,2808.5,0.00025537]
[1645251158907,8.65093908,2808.6,2808.5,0.00025537]
[1645251159105,8.37771417,2808.6,2808.5,0.00025537]
[1645251159311,11.49231417,2808.6,2808.5,0.00025537]
[1645251159512,10.59584382,2808.6,2808.5,0.00025537]
[1645251159805,11.49152032,2808.6,2808.5,0.00025537]
[1645251160407,12.2992743,2808.6,2808.5,0.00025537]
[1645251162213,11.2256978,2808.6,2808.5,0.00025537]
[1645251163829,0.86109085,2808.2,2808.1,0.00236273]
[1645251164034,2.55970483,2808.2,2808.1,0.00236273]
[1645251164229,3.15970483,2808.2,2808.1,0.00236273]
[1645251164437,7.65970483,2808.2,2808.1,0.00236273]
[1645251164631,7.65970483,2808.2,2808.0,0.69168438]
[1645251164831,1.0,2808.1,2808.0,0.69168438]
[1645251165033,1.80775398,2808.1,2808.0,0.69404699]
[1645251165231,1.80775398,2808.1,2808.0,0.00236261]
[1645251165833,1.80775398,2808.1,2807.9,0.69168438]
[1645251166082,4.5,2807.9,2807.2,0.89446374]
[1645251166284,0.80775398,2807.8,2807.3,0.69144992]
[1645251166481,0.80775398,2807.8,2807.4,0.69144992]
[1645251166681,0.80775398,2807.8,2807.5,0.69144992]
[1645251166880,0.80775398,2807.8,2807.6,0.69144992]
[1645251167087,0.80775398,2807.8,2807.2,0.67871349]
[1645251167088,0.80775398,2807.8,2807.7,0.69144992]
[1645251167482,0.80775398,2807.8,2807.2,0.67871349]
[1645251167687,4.30620217,2807.8,2807.1,0.67871349]
[1645251167886,4.39094,2807.8,2807.1,0.67871349]
[1645251168787,0.89096,2807.7,2806.9,1.85921349]
[1645251168984,0.89096,2807.7,2807.1,0.67871349]
[1645251169184,0.89096,2807.7,2807.0,0.67871349]
[1645251169588,4.89096,2807.7,2806.6,0.3836096]
[1645251170032,3.5,2807.6,2806.6,0.3836096]
[1645251170331,2.77787945,2807.6,2806.6,0.3836096]
[1645251170527,0.89099,2807.6,2806.7,3.5]
[1645251170931,0.89099,2807.6,2807.0,0.00236306]
[1645251171131,1.1819,2807.8,2807.0,0.00236306]
[1645251171331,2.4819,2807.8,2807.0,0.00236306]
[1645251171534,0.89096,2807.7,2807.0,0.00236306]
[1645251171930,0.89096,2807.7,2806.7,3.58611616]
[1645251172432,1.19096,2807.7,2807.2,0.00236296]
[1645251172633,0.89096,2807.7,2807.2,0.00236296]
[1645251173134,0.89096,2807.7,2806.7,3.5]
[1645251173333,1.78195,2807.7,2807.3,0.00236291]
[1645251174376,1.78195,2807.7,2806.7,3.5]
[1645251174575,1.78195,2807.7,2807.4,0.00236289]
[1645251175576,1.78195,2807.7,2806.7,3.5]
[1645251175777,1.78195,2807.7,2807.4,0.00236291]
[1645251176680,1.78195,2807.7,2806.6,0.13819997]
[1645251176880,1.78195,2807.7,2807.4,0.00236291]
[1645251177432,1.95985,2807.7,2807.4,0.00236291]
[1645251177829,1.95985,2807.7,2806.6,0.13819997]
[1645251178227,1.78195,2807.7,2807.4,0.00236291]
[1645251178428,2.67297,2807.7,2807.4,0.00236291]
[1645251179030,2.67297,2807.7,2806.7,3.5]
[1645251179230,2.67297,2807.7,2806.6,1.04108026]
[1645251179432,1.78195,2807.7,2807.4,0.00236291]
[1645251180233,1.78195,2807.7,2806.9,0.67708921]
[1645251180633,1.78195,2807.7,2807.4,0.00236291]
[1645251181493,1.78195,2807.7,2806.9,0.67708921]
[1645251181692,1.78195,2807.7,2807.4,0.00236291]
[1645251182092,1.78195,2807.7,2807.6,0.02736547]
[1645251183192,2.78195,2807.7,2807.6,0.02736547]
[1645251185725,3.38195,2807.7,2807.6,0.02736547]
[1645251186124,2.78195,2807.7,2807.6,0.02736547]
[1645251187123,2.82397028,2807.7,2807.4,0.00236295]
[1645251187526,2.82397028,2807.7,2806.9,0.67708921]
[1645251187726,2.82397028,2807.7,2807.4,0.00236291]
[1645251188675,2.82397028,2807.7,2806.9,0.67708921]
[1645251188876,2.82397028,2807.7,2807.4,0.00236291]
[1645251188877,0.86214268,2807.6,2807.4,0.00236291]
[1645251189675,0.86214268,2807.6,2807.4,0.63596349]
[1645251189878,0.86214268,2807.6,2807.5,0.63360058]
[1645251190277,0.86214268,2807.6,2807.4,0.00236289]
[1645251190674,2.82397028,2807.7,2807.4,0.00236289]
[1645251190875,0.86227388,2807.6,2807.4,0.00236289]
[1645251191176,0.86227388,2807.6,2807.3,0.63360058]
[1645251191375,0.86227388,2807.6,2807.4,0.63596349]
[1645251191576,0.86227388,2807.6,2807.5,0.63360058]
[1645251191974,0.01433654,2807.5,2807.4,0.00236291]
[1645251192177,0.00226497,2807.5,2807.4,0.00236291]
[1645251192430,0.00226497,2807.5,2806.9,1.31086431]
[1645251192431,0.89105,2807.4,2806.9,1.31086431]
[1645251192629,0.89105,2807.4,2807.3,0.00236291]
[1645251193429,0.89105,2807.4,2806.9,1.31086431]
[1645251193832,0.89105,2807.4,2807.2,0.00236296]
[1645251194732,0.89105,2807.4,2806.9,1.31086431]
[1645251194932,0.89105,2807.4,2807.2,0.00236298]
[1645251195933,0.89105,2807.4,2806.9,1.31086431]
[1645251196180,0.89105,2807.4,2807.2,0.00236298]
[1645251196777,0.00226497,2807.5,2807.2,0.00236298]
[1645251197179,0.00226497,2807.5,2807.0,0.67708921]
[1645251197379,0.00226497,2807.5,2807.2,0.00236296]
[1645251197380,0.02639792,2807.4,2807.2,0.00236296]
[1645251197579,0.01370096,2807.3,2807.2,0.00236296]
[1645251198378,0.01370096,2807.3,2807.0,0.67708921]
[1645251198580,0.01370096,2807.3,2807.1,0.002363]
[1645251199580,0.01370096,2807.3,2807.0,0.67708921]
[1645251199827,0.01370096,2807.3,2807.1,0.00236302]
[1645251200229,0.01370096,2807.3,2807.1,0.67945223]
[1645251200733,0.01370096,2807.3,2807.1,0.67708921]
[1645251200928,0.01370096,2807.3,2807.1,0.67945223]
[1645251201930,0.01370096,2807.3,2807.1,0.67708921]
[1645251202132,0.01370096,2807.3,2807.1,0.67945223]
[1645251202330,0.01370096,2807.3,2807.2,0.6337751]
[1645251202529,0.01370096,2807.3,2807.1,0.67945223]
[1645251202731,0.87908242,2807.3,2807.1,0.67945223]
[1645251202936,0.01370096,2807.3,2807.1,1.31322733]
[1645251203134,0.01370096,2807.3,2807.2,0.6337751]
[1645251203342,0.90477096,2807.3,2807.2,0.67708921]
[1645251203582,1.7702277,2807.3,2807.2,0.6337751]
[1645251203982,1.7702277,2807.3,2807.1,0.67945223]
[1645251204181,0.90477096,2807.3,2807.1,0.67945223]
[1645251204382,0.90477096,2807.3,2807.1,0.67708921]
[1645251204581,0.90477096,2807.3,2807.1,0.67945223]
[1645251205181,0.90477096,2807.3,2807.1,1.31322733]
[1645251205380,0.90477096,2807.3,2807.2,0.6337751]
[1645251205582,0.8791241,2807.3,2807.2,0.6337751]
[1645251205781,0.8791241,2807.3,2807.1,0.67945223]
[1645251205986,0.01370096,2807.3,2807.1,0.67945223]
[1645251206782,0.01370096,2807.3,2807.1,0.67708921]
[1645251206983,0.01370096,2807.3,2807.1,0.67945223]
[1645251207181,0.02742577,2807.3,2807.1,0.67945223]
[1645251207834,0.02742577,2807.3,2807.1,0.67708921]
[1645251208234,0.02742577,2807.3,2807.1,0.67945223]
[1645251209131,0.02742577,2807.3,2807.1,0.67708921]
[1645251209333,0.02742577,2807.3,2807.1,0.67945223]
[1645251210333,0.02742577,2807.3,2807.1,0.67708921]
[1645251210533,0.02742577,2807.3,2807.1,0.67945223]
[1645251210940,0.02742577,2807.3,2807.1,0.00236302]
[1645251210941,0.86553809,2807.2,2807.1,0.00236302]
[1645251211380,0.86553809,2807.2,2807.1,0.63808789]
[1645251211580,0.86553809,2807.2,2807.1,0.63572487]
[1645251211980,0.86553809,2807.2,2807.0,0.00236304]
[1645251212179,1.75668809,2807.2,2807.0,0.00236304]
[1645251212480,0.89115,2807.2,2807.0,0.67945225]
[1645251212780,0.86545066,2807.1,2807.0,0.67708921]
[1645251212979,0.89115,2807.2,2807.0,0.67945227]
[1645251213882,0.86160435,2807.1,2807.0,0.67708921]
[1645251214079,0.89115,2807.2,2807.0,0.67829852]
[1645251214282,0.27357767,2807.3,2807.0,0.67829852]
[1645251214480,1.96032,2807.5,2807.0,0.67829852]
[1645251214481,0.893128,2807.2,2807.0,0.67829852]
[1645251214679,0.89104,2807.8,2807.0,0.67829852]
[1645251214680,0.1781,2807.7,2807.0,0.67829852]
[1645251214935,0.89315955,2807.6,2807.0,1.31402339]
[1645251215131,0.1781,2807.5,2807.1,0.63572487]
[1645251215334,0.89315955,2807.4,2807.2,0.63693407]
[1645251215532,0.89315955,2807.4,2807.3,0.63572487]
[1645251215932,0.89315955,2807.5,2807.3,0.63572487]
[1645251216133,0.89315955,2807.5,2807.2,0.0012092]
[1645251216134,0.89315955,2807.4,2807.2,0.0012092]
[1645251216333,0.89315955,2807.3,2807.0,0.67708921]
[1645251217336,0.89315955,2807.3,2807.1,0.60756981]
[1645251217633,0.89315955,2807.3,2807.2,0.60756981]
[1645251218034,0.89315955,2807.3,2807.0,0.67924761]
[1645251218239,0.89315955,2807.3,2807.0,0.0021584]
[1645251218683,0.89315955,2807.3,2806.9,0.67708921]
[1645251218984,0.89315955,2807.3,2807.0,0.0021584]
[1645251219382,0.89315955,2807.3,2807.0,0.67924761]
[1645251219981,0.89315955,2807.3,2807.0,0.67708921]
[1645251220185,0.89315955,2807.3,2807.0,0.67924761]
[1645251221085,0.89315955,2807.3,2807.0,0.67708921]
[1645251221284,0.89315955,2807.3,2807.0,0.67924761]
[1645251221690,1.19315955,2807.3,2807.0,0.0021584]
[1645251221888,1.78425955,2807.2,2807.0,0.0021584]
[1645251222085,0.89315955,2807.1,2807.0,0.0021584]
[1645251222333,0.89315955,2807.1,2806.8,0.67708921]
[1645251222536,0.89315955,2807.1,2807.0,0.00218757]
[1645251223536,0.89315955,2807.1,2806.9,0.67708921]
[1645251223736,0.89315955,2807.1,2806.9,0.6792768]
[1645251224738,0.89315955,2807.1,2806.9,0.67708921]
[1645251224936,0.89315955,2807.1,2806.9,0.67927683]
[1645251225736,0.01428282,2807.2,2806.9,0.67927683]
[1645251225937,0.89268182,2807.1,2807.0,0.60736326]
[1645251226384,0.89268182,2807.1,2806.9,0.00218339]
[1645251226584,0.89268182,2807.1,2807.0,0.60736326]
[1645251227184,0.90696826,2807.1,2806.8,0.68100749]
[1645251227390,0.01428644,2807.1,2806.9,0.67927258]
[1645251227589,0.01428644,2807.1,2807.0,0.60736326]
[1645251228085,0.90685961,2807.1,2806.9,0.00218337]
[1645251228284,0.01428644,2807.1,2806.8,0.68100749]
[1645251228485,0.01428644,2807.1,2806.9,0.00218337]
[1645251229087,0.01428644,2807.1,2806.9,0.67927258]
[1645251229287,0.01428644,2807.1,2807.0,0.60736326]
[1645251229490,0.9068535,2807.1,2807.0,0.60736326]
[1645251229689,0.9068535,2807.1,2806.9,1.28663648]
[1645251229944,0.01428644,2807.1,2807.0,0.60736326]
[1645251230337,0.90684636,2807.1,2807.0,0.60736326]
[1645251230738,0.90684636,2807.1,2806.8,0.68100749]
[1645251230938,0.90684636,2807.1,2806.9,0.00218398]
[1645251230939,0.01428644,2807.1,2806.9,0.00218398]
[1645251231439,0.01428644,2807.1,2806.9,0.67927319]
[1645251231637,0.01428644,2807.1,2806.9,1.28663645]
[1645251231838,0.0274714,2807.0,2806.9,1.28445247]
[1645251232242,0.0274714,2807.0,2806.9,0.60954727]
[1645251233043,0.0274714,2807.0,2806.9,0.60736326]
[1645251233585,0.0274714,2807.0,2806.9,0.67708921]
[1645251233985,0.0274714,2807.0,2806.9,1.28445247]
[1645251234385,0.00824016,2807.3,2806.9,1.28445247]
[1645251234588,0.00824016,2807.3,2807.0,0.60736326]
[1645251234589,0.89333253,2807.2,2807.0,0.60736326]
[1645251234885,0.89333253,2807.2,2807.1,0.60736326]
[1645251237735,2.36911,2807.5,2807.1,0.60736326]
[1645251237736,0.89333253,2807.4,2807.1,0.60736326]
[1645251237937,0.89333253,2807.3,2807.1,0.61128154]
[1645251238137,2.36911,2807.5,2807.2,0.60736326]
[1645251238537,0.8934821,2807.4,2807.2,0.60736326]
[1645251239437,0.8934821,2807.4,2807.2,0.60954706]
[1645251240237,0.8934821,2807.4,2807.2,0.60736326]
[1645251240739,0.8934821,2807.4,2807.2,0.60954706]
[1645251241592,0.8934821,2807.4,2807.2,0.60736326]
[1645251241791,0.8934821,2807.4,2807.2,0.60954706]
[1645251242593,0.8934821,2807.4,2807.3,0.03366446]
[1645251242794,0.8934821,2807.4,2807.3,0.64102772]
[1645251247637,0.90663796,2807.4,2807.3,0.60736326]
[1645251247840,0.90663796,2807.4,2807.2,0.60954704]
[1645251248043,0.8934821,2807.3,2807.2,0.60954704]
[1645251248239,0.8934821,2807.3,2807.2,0.00218378]
[1645251248785,0.8934821,2807.3,2807.1,0.61128154]
[1645251248987,0.8934821,2807.3,2807.2,0.60736326]
[1645251251491,0.8934821,2807.3,2807.1,0.60736326]
[1645251251690,1.7845521,2807.3,2807.2,0.60736326]
[1645251251892,1.7845521,2807.3,2807.1,0.61346536]
[1645251252189,1.7845521,2807.3,2807.2,0.60736326]
[1645251252190,0.91633893,2807.3,2807.2,0.60736326]
[1645251252434,1.81041608,2807.3,2807.1,0.00391828]
[1645251252638,0.91633893,2807.3,2807.1,0.00218384]
[1645251252840,0.89409178,2807.2,2807.1,0.00218384]
[1645251253434,0.89409178,2807.2,2807.1,0.6095471]
[1645251253635,0.89409178,2807.2,2806.9,0.68100749]
[1645251253835,0.89409178,2807.2,2807.0,0.00218386]
[1645251254037,1.78519178,2807.2,2807.0,0.00218386]
[1645251254335,0.89409178,2807.1,2807.0,0.67927307]
[1645251254538,0.8911,2807.2,2807.0,0.67927307]
[1645251254736,0.8911,2807.2,2807.0,0.67708921]
[1645251254936,0.89429519,2807.1,2807.0,0.67708921]
[1645251255143,0.89426186,2807.1,2807.0,0.60736326]
[1645251255340,0.8911,2807.2,2806.9,0.00218391]
[1645251255537,0.89424413,2807.1,2806.9,0.00610219]
[1645251255742,0.8911,2807.2,2807.0,0.60736326]
[1645251256089,0.8911,2807.2,2807.1,0.60736326]
[1645251256386,1.78532836,2807.2,2806.9,0.67927314]
[1645251256585,0.89421907,2807.1,2806.9,0.68319142]
[1645251256786,0.8911,2807.2,2806.9,0.68319142]
[1645251256987,0.89422464,2807.1,2806.9,0.67927314]
[1645251257188,0.01310785,2807.1,2806.9,0.68100749]
[1645251257389,0.01310785,2807.1,2806.9,0.67927312]
[1645251257790,0.89422473,2807.0,2806.9,0.67927312]
[1645251257988,0.89422263,2807.0,2806.9,0.67927312]
[1645251258190,0.01310785,2807.1,2806.9,0.67927312]
[1645251258387,0.01310785,2807.1,2806.8,0.67708921]
[1645251258586,0.01310785,2807.1,2806.8,0.67927316]
[1645251258786,0.894126,2807.0,2806.8,0.67927316]
[1645251258991,0.8911,2807.2,2807.1,0.71569317]
[1645251259286,0.8911,2807.2,2807.1,1.32305643]
[1645251259287,1.785396,2807.2,2807.1,1.32305643]
[1645251260150,1.25190938,2807.5,2807.2,8.0]
[1645251260357,2.82067441,2807.9,2807.3,3.5]
[1645251260358,0.67238029,2807.9,2807.3,3.5]
[1645251260545,0.00218318,2807.9,2807.3,4.17708921]
[1645251260749,0.67019711,2808.2,2807.4,1.19708921]
[1645251260946,0.67019711,2808.4,2807.5,0.67708921]
[1645251261144,0.00218334,2807.9,2807.6,0.67708921]
[1645251261545,0.00218334,2807.9,2807.4,0.00218375]
[1645251261747,0.89310334,2807.9,2807.4,0.00218375]
[1645251261945,0.89310334,2807.9,2807.2,2.53028921]
[1645251261946,0.89092,2807.9,2807.2,2.53028921]
[1645251262146,0.89099,2807.8,2807.2,2.53028921]
[1645251262351,1.78201,2807.8,2807.4,0.00211007]
[1645251263147,1.78201,2807.8,2807.2,0.67708921]
[1645251263347,1.78201,2807.8,2807.4,0.00211005]
[1645251263597,0.89106,2807.7,2807.4,0.00211005]
[1645251264291,0.89106,2807.7,2807.1,0.71961145]
[1645251264292,6.33408364,2807.7,2807.1,0.71961145]
[1645251264494,0.1781,2807.6,2807.1,0.71961145]
[1645251264691,0.1781,2807.6,2807.4,0.00211003]
[1645251264990,0.84829711,2807.6,2807.4,0.00211003]
[1645251265190,1.30316048,2807.6,2807.4,0.00211003]
[1645251265392,3.87624442,2807.5,2807.4,0.00211003]
[1645251265601,3.87624442,2807.5,2806.6,0.00391828]
[1645251265602,8.3,2807.4,2806.6,0.00391828]
[1645251265793,3.95527854,2807.3,2806.7,0.00803292]
[1645251265991,0.1781,2807.2,2806.7,0.00803292]
[1645251266195,2.15012275,2807.2,2806.7,0.00803292]
[1645251266393,2.30396933,2807.2,2806.7,0.00803292]
[1645251266793,0.89129,2806.9,2806.3,0.68100749]
[1645251266993,2.08259,2806.9,2806.8,0.00200793]
[1645251267192,2.38259,2806.9,2806.8,0.00200793]
[1645251267647,3.38259,2806.9,2806.8,0.00200793]
[1645251267841,3.38259,2806.9,2806.3,0.68100749]
[1645251268249,3.38259,2806.9,2806.7,0.00200797]
[1645251269245,3.38259,2806.9,2806.3,0.00391828]
[1645251269546,2.19129,2806.9,2806.7,0.00200621]
[1645251269947,0.3,2806.9,2806.7,0.00200621]
[1645251270143,1.3,2806.9,2806.7,0.00200621]
[1645251270345,0.3,2806.9,2806.5,0.00391828]
[1645251270544,1.3,2806.9,2806.7,0.00200621]
[1645251270948,0.3,2806.9,2806.7,0.00200621]
[1645251271192,1.0,2806.9,2806.7,0.00200621]
[1645251271392,0.3,2806.9,2806.7,0.00200621]
[1645251271591,0.3,2806.9,2806.3,0.00391828]
[1645251271894,1.3,2807.0,2806.7,0.00200621]
[1645251271895,1.6,2807.0,2806.7,0.00200621]
[1645251272095,0.89125,2806.9,2806.7,0.00200621]
[1645251272292,1.3,2806.9,2806.7,0.00200621]
[1645251272694,0.3,2806.9,2806.8,0.01344975]
[1645251273093,0.3,2807.0,2806.8,0.01344975]
[1645251274496,0.89124,2807.0,2806.8,0.01344975]
[1645251274837,1.06881657,2807.0,2806.8,0.01344975]
[1645251275239,2.78242,2807.1,2806.8,0.01344975]
[1645251275436,3.67363,2807.1,2806.8,0.01447603]
[1645251275638,3.85173,2807.1,2806.8,0.01447603]
[1645251276036,0.3,2807.0,2806.8,0.01447603]
[1645251276236,0.6,2807.0,2806.8,0.01447603]
[1645251276436,0.6,2807.0,2806.8,0.01344975]
[1645251276637,0.6,2807.0,2806.8,0.01581835]
[1645251277636,0.6,2807.0,2806.8,0.01344975]
[1645251277839,0.01592166,2806.9,2806.8,0.00216867]
[1645251278689,0.01592166,2806.9,2806.3,0.68100749]
[1645251278889,0.01592166,2806.9,2806.7,0.0021687]
[1645251279989,0.01592166,2806.9,2806.3,0.68100749]
[1645251280190,0.01592166,2806.9,2806.7,0.00216872]
[1645251280389,0.89119932,2806.8,2806.7,0.00216872]
[1645251280590,0.01592166,2806.9,2806.7,0.00216872]
[1645251280995,0.89119548,2806.8,2806.7,0.00216872]
[1645251281291,0.01592166,2806.9,2806.7,0.60842308]
[1645251281492,0.01592166,2806.9,2806.8,0.60625436]
[1645251281694,0.01592166,2806.9,2806.7,0.006087]
[1645251281695,0.90711368,2806.9,2806.7,0.006087]
[1645251281894,0.01592166,2806.9,2806.8,0.60625436]
[1645251282346,0.90710972,2806.9,2806.5,0.60625436]
[1645251282537,0.90710972,2806.9,2806.4,0.00391828]
[1645251282538,0.01592166,2806.9,2806.7,0.0021888]
[1645251283139,0.89140096,2806.8,2806.7,0.60844316]
[1645251283341,0.01592166,2806.9,2806.7,0.60844316]
[1645251283545,0.01592166,2806.9,2806.8,0.60625436]
[1645251283739,0.90733189,2806.9,2806.6,0.00218884]
[1645251283940,0.01592166,2806.9,2806.6,0.00218884]
[1645251284142,0.01592166,2806.9,2806.6,0.00610712]
[1645251284342,0.90717166,2806.9,2806.7,0.60625436]
[1645251284540,0.89139487,2806.8,2806.7,0.60625436]
[1645251284743,1.20717166,2806.9,2806.5,0.60625436]
[1645251284942,0.89145002,2806.8,2806.7,0.00218882]
[1645251285143,2.20717166,2806.9,2806.7,0.60844318]
[1645251285341,0.89143313,2806.8,2806.7,0.60844318]
[1645251285542,1.31592166,2806.9,2806.7,0.00218882]
[1645251285742,0.89142054,2806.8,2806.7,0.00218882]
[1645251285944,0.89141324,2806.8,2806.7,0.60625436]
[1645251286195,0.89145232,2806.8,2806.7,0.60844027]
[1645251286392,0.89140256,2806.8,2806.7,0.60844027]
[1645251286594,0.89141028,2806.8,2806.7,0.60844027]
[1645251286793,0.01592166,2806.9,2806.7,0.00218591]
[1645251286998,0.89143149,2806.8,2806.7,0.00218591]
[1645251287197,0.89143149,2806.8,2806.6,0.00391828]
[1645251287198,0.01592166,2806.9,2806.6,0.61017264]
[1645251287398,0.8914461,2806.8,2806.7,0.60844027]
[1645251287600,0.01592166,2806.9,2806.7,0.00218591]
[1645251287896,0.01589879,2806.8,2806.7,0.00218591]
[1645251288098,0.90734147,2806.8,2806.7,0.00218591]
[1645251288298,0.90733607,2806.8,2806.7,0.60625436]
[1645251288498,0.01589879,2806.8,2806.6,0.00218593]
[1645251288702,0.00311002,2806.8,2806.6,0.00218593]
[1645251289499,0.89476499,2806.8,2806.5,0.60625436]
[1645251289840,0.89476499,2806.8,2806.6,0.00218637]
[1645251290643,0.89476499,2806.8,2806.5,0.60625436]
[1645251290847,0.00311002,2806.8,2806.5,0.60625436]
[1645251291046,0.00311002,2806.8,2806.6,0.00218637]
[1645251291843,0.00311002,2806.8,2806.5,0.60625436]
[1645251292245,0.00311002,2806.8,2806.6,0.00218637]
[1645251292449,0.89221036,2806.9,2806.6,0.00218637]
[1645251292745,0.3,2807.1,2806.6,0.00610465]
[1645251292945,0.89233482,2807.0,2806.7,0.60625436]
[1645251293151,0.89233482,2806.9,2806.7,0.60625436]
[1645251293348,0.89233482,2806.9,2806.8,0.60625436]
[1645251293599,0.7781,2807.2,2806.7,0.00610453]
[1645251293600,0.89233482,2807.0,2806.7,0.00610453]
[1645251293804,1.7781,2807.2,2806.8,0.60625436]
[1645251293805,0.89233482,2806.9,2806.8,0.60625436]
[1645251294098,5.73445275,2807.6,2806.8,0.60625436]
[1645251294099,0.1781,2807.5,2806.8,0.60625436]
[1645251294398,0.89243367,2807.4,2806.8,0.60625436]
[1645251295197,2.45410275,2807.8,2806.9,3.5]
[1645251295198,0.89243367,2807.3,2806.9,3.5]
[1645251295602,1.53940061,2808.0,2807.0,0.60625436]
[1645251295799,0.89505903,2807.9,2807.1,3.5]
[1645251295998,0.89505903,2807.9,2807.2,0.60625436]
[1645251296198,0.89505903,2807.9,2807.3,0.60625436]
[1645251296400,0.89505903,2807.9,2807.4,0.60625436]
[1645251296601,0.89505903,2807.9,2807.5,0.60625436]
[1645251296798,0.89505903,2807.9,2807.6,0.60625436]
[1645251296799,0.89287362,2807.9,2807.6,0.60625436]
[1645251296996,0.89505923,2807.9,2807.4,0.00218603]
[1645251297644,2.49505923,2807.9,2807.4,0.00218603]
[1645251297847,0.89287362,2807.8,2807.4,0.00218603]
[1645251298045,0.89287362,2807.8,2807.1,3.5]
[1645251298246,1.89287362,2807.8,2807.4,0.00218603]
[1645251298450,0.89287362,2807.7,2807.2,0.55796411]
[1645251298646,0.89287362,2807.7,2807.1,3.5]
[1645251298847,2.49311561,2807.9,2807.1,3.5]
[1645251299245,2.49093,2807.9,2807.1,3.5]
[1645251300049,1.0,2807.9,2807.1,3.5]
[1645251300252,1.27202275,2808.1,2807.1,3.5]
[1645251300450,1.1779,2808.2,2807.1,3.5]
[1645251300451,0.1779,2808.2,2807.1,3.5]
[1645251300655,0.89358783,2808.5,2807.2,1.19708921]
[1645251300656,0.00098123,2807.7,2807.2,1.19708921]
[1645251301104,0.00098123,2807.7,2807.2,2.08786971]
[1645251301399,0.00098123,2807.7,2807.6,0.89463035]
[1645251301606,2.6229395,2808.7,2807.6,4.91463035]
[1645251301607,0.67202275,2808.7,2807.6,4.91463035]
[1645251301804,0.67202275,2809.0,2807.7,3.5]
[1645251302102,0.67202275,2809.0,2807.8,0.52]
[1645251302303,0.67202275,2809.1,2808.1,0.89034]
[1645251302500,0.67202275,2809.1,2808.2,0.89038]
[1645251302701,0.67202275,2809.1,2808.0,2.30065]
[1645251302702,0.67202275,2809.1,2808.0,0.52]
[1645251302902,0.67202275,2808.9,2808.0,0.52]
[1645251303301,0.00218527,2808.7,2808.0,0.52]
[1645251303905,1.56261275,2809.0,2808.0,0.52]
[1645251304106,0.00218684,2808.5,2808.0,0.52]
[1645251305149,2.45324275,2809.0,2808.0,0.52]
[1645251305347,0.00218688,2808.4,2808.0,0.52]
[1645251306146,0.00218688,2808.4,2807.9,3.53011367]
[1645251306347,2.45324275,2809.0,2807.9,3.53011367]
[1645251306652,0.0021869,2808.3,2807.9,3.53011367]
[1645251306848,0.0021869,2808.3,2807.9,0.03011367]
[1645251307052,0.0021869,2808.3,2807.9,3.53011367]
[1645251307249,0.0021869,2808.3,2807.9,0.03011367]
[1645251307648,1.31803382,2808.9,2807.9,0.03011367]
[1645251307950,0.00218506,2808.2,2807.9,3.53011367]
[1645251308149,0.00218506,2808.2,2807.9,0.03011367]
[1645251308354,0.00218506,2808.2,2807.9,3.53011367]
[1645251308595,0.00218506,2808.2,2807.9,0.03011367]
[1645251308797,1.61803382,2808.9,2807.9,0.03011367]
[1645251308998,0.00218508,2808.2,2807.9,3.53011367]
[1645251309200,0.00218508,2808.2,2807.9,0.03011367]